[Event "Live Chess"]
[Site "Chess.com"]
[Date "2023.05.20"]
[Round "-"]
[White "therealab0ne"]
[Black "BillythekidFellowes"]
[Result "0-1"]
[WhiteElo "704"]
[BlackElo "2039"]
[TimeControl "300"]
[EndTime "13:22:19 PDT"]
[Termination "BillythekidFellowes won by resignation"]

1. e4 {[%clk 0:04:57.9]} 1... e6 {[%clk 0:04:59.9]} 2. d4 {[%clk 0:04:56.1]}
2... d5 {[%clk 0:04:59.1]} 3. e5 {[%clk 0:04:55.8]} 3... c5 {[%clk 0:04:56.2]}
4. Nf3 {[%clk 0:04:45.4]} 4... Nc6 {[%clk 0:04:54.4]} 5. Bb5 {[%clk 0:04:43.8]}
5... a6 {[%clk 0:04:53.5]} 6. Ba4 {[%clk 0:04:42.6]} 6... b5 {[%clk 0:04:50.9]}
7. Bg5 {[%clk 0:04:24.8]} 7... Be7 {[%clk 0:04:48.9]} 8. Bxe7 {[%clk 0:04:20.6]}
8... Ngxe7 {[%clk 0:04:48.8]} 9. Bxb5 {[%clk 0:04:18.6]} 9... axb5 {[%clk
0:04:47.6]} 10. O-O {[%clk 0:04:18.1]} 10... cxd4 {[%clk 0:04:45.7]} 11. Nxd4
{[%clk 0:04:16.4]} 11... O-O {[%clk 0:04:42.8]} 12. Nxb5 {[%clk 0:04:06.2]}
12... Nxe5 {[%clk 0:04:41.9]} 13. Nd2 {[%clk 0:03:52.5]} 13... Nf5 {[%clk
0:04:39.1]} 14. Nf3 {[%clk 0:03:50.9]} 14... Nxf3+ {[%clk 0:04:37.6]} 15. Qxf3
{[%clk 0:03:49.8]} 15... Qb6 {[%clk 0:04:36.7]} 16. Nc3 {[%clk 0:03:35]} 16...
Qxb2 {[%clk 0:04:33.4]} 17. Rab1 {[%clk 0:03:29.2]} 17... Qa3 {[%clk 0:04:16]}
18. Nxd5 {[%clk 0:03:01.9]} 18... Qxf3 {[%clk 0:04:13.6]} 19. gxf3 {[%clk
0:02:59.5]} 19... exd5 {[%clk 0:04:12.5]} 0-1

[Event "Live Chess"]
[Site "Chess.com"]
[Date "2023.05.20"]
[Round "-"]
[White "OleksiyJr1"]
[Black "lightningorderyt"]
[Result "1-0"]
[WhiteElo "964"]
[BlackElo "522"]
[TimeControl "300"]
[EndTime "13:22:20 PDT"]
[Termination "OleksiyJr1 won by resignation"]

1. e4 {[%clk 0:04:58.8]} 1... c6 {[%clk 0:04:58.2]} 2. Nf3 {[%clk 0:04:58.2]}
2... d5 {[%clk 0:04:56.5]} 3. e5 {[%clk 0:04:58.1]} 3... Bf5 {[%clk 0:04:51.2]}
4. d4 {[%clk 0:04:58]} 4... c5 {[%clk 0:04:48.6]} 5. Nc3 {[%clk 0:04:57.4]} 5...
Nc6 {[%clk 0:04:45.9]} 6. Bd3 {[%clk 0:04:54.7]} 6... Be6 {[%clk 0:04:37.9]} 7.
Bb5 {[%clk 0:04:52.2]} 7... c4 {[%clk 0:04:32.4]} 8. Be3 {[%clk 0:04:49.6]} 8...
Bg4 {[%clk 0:04:27.6]} 9. h3 {[%clk 0:04:48.3]} 9... Bf5 {[%clk 0:04:23]} 10.
O-O {[%clk 0:04:46.7]} 10... Qb6 {[%clk 0:04:15]} 11. a4 {[%clk 0:04:19.9]}
11... a6 {[%clk 0:04:02.7]} 12. a5 {[%clk 0:04:07]} 12... Qc7 {[%clk 0:03:57.7]}
13. Bxc6+ {[%clk 0:04:05.4]} 13... Qxc6 {[%clk 0:03:56.8]} 14. b4 {[%clk
0:04:04.2]} 14... e6 {[%clk 0:03:49.3]} 15. Ne2 {[%clk 0:03:47.5]} 15... Bxb4
{[%clk 0:03:47.5]} 16. c3 {[%clk 0:03:45]} 16... Be7 {[%clk 0:03:36.2]} 17. Bg5
{[%clk 0:03:40]} 17... Bxg5 {[%clk 0:03:28.7]} 18. Nxg5 {[%clk 0:03:39.9]} 18...
h6 {[%clk 0:03:26.2]} 19. Nf3 {[%clk 0:03:36.5]} 19... f6 {[%clk 0:03:22.1]} 20.
Re1 {[%clk 0:03:30.5]} 20... Ne7 {[%clk 0:03:11.9]} 21. Qa4 {[%clk 0:03:21.8]}
21... Qxa4 {[%clk 0:02:55.4]} 22. Rxa4 {[%clk 0:03:21.7]} 22... g5 {[%clk
0:02:51.9]} 23. Rb4 {[%clk 0:03:18.5]} 23... Rb8 {[%clk 0:02:45.2]} 24. exf6
{[%clk 0:03:16.1]} 24... Ng6 {[%clk 0:02:42.5]} 25. Ne5 {[%clk 0:03:14.5]} 25...
Nf4 {[%clk 0:02:27.9]} 26. Nxf4 {[%clk 0:03:12.1]} 26... gxf4 {[%clk 0:02:21.3]}
27. g4 {[%clk 0:03:08]} 27... Bg6 {[%clk 0:02:19]} 28. Nxg6 {[%clk 0:03:05.8]}
28... b6 {[%clk 0:02:13.3]} 29. Nxh8 {[%clk 0:03:00.3]} 29... bxa5 {[%clk
0:02:11]} 30. Rxb8+ {[%clk 0:03:00.2]} 1-0

[Event "Live Chess"]
[Site "Chess.com"]
[Date "2023.05.20"]
[Round "-"]
[White "Ferrarifan27"]
[Black "wot-not"]
[Result "0-1"]
[WhiteElo "2050"]
[BlackElo "1501"]
[TimeControl "300"]
[EndTime "13:22:23 PDT"]
[Termination "wot-not won by resignation"]

1. e4 {[%clk 0:04:57.2]} 1... e6 {[%clk 0:04:57.6]} 2. d4 {[%clk 0:04:55.8]}
2... d5 {[%clk 0:04:57]} 3. e5 {[%clk 0:04:54.8]} 3... c5 {[%clk 0:04:56.2]} 4.
c3 {[%clk 0:04:50.1]} 4... Bd7 {[%clk 0:04:54.6]} 5. Nf3 {[%clk 0:04:49.2]} 5...
Qb6 {[%clk 0:04:53.4]} 6. a3 {[%clk 0:04:48.1]} 6... Bb5 {[%clk 0:04:52.1]} 7.
Be2 {[%clk 0:04:44.5]} 7... Bxe2 {[%clk 0:04:50.9]} 8. Qxe2 {[%clk 0:04:43.8]}
8... cxd4 {[%clk 0:04:48.7]} 9. cxd4 {[%clk 0:04:42.5]} 9... Ne7 {[%clk
0:04:46.5]} 10. O-O {[%clk 0:04:39.8]} 10... Nf5 {[%clk 0:04:45.5]} 11. Rd1
{[%clk 0:04:37]} 11... Be7 {[%clk 0:04:44.2]} 12. Nc3 {[%clk 0:04:32.3]} 12...
Nc6 {[%clk 0:04:39.1]} 13. Na4 {[%clk 0:04:27.5]} 13... Qa6 {[%clk 0:04:29.2]}
14. Qxa6 {[%clk 0:04:24.7]} 14... bxa6 {[%clk 0:04:28.5]} 15. Be3 {[%clk
0:04:21.6]} 15... O-O {[%clk 0:04:26.4]} 16. Rac1 {[%clk 0:04:19.3]} 16... Na5
{[%clk 0:04:22]} 17. Rc7 {[%clk 0:04:18]} 17... Nc4 {[%clk 0:04:17.7]} 18. g4
{[%clk 0:04:09.1]} 18... Nfxe3 {[%clk 0:04:16.7]} 19. fxe3 {[%clk 0:04:07.1]}
19... Bd8 {[%clk 0:04:06.1]} 20. Rc6 {[%clk 0:04:01.9]} 20... Nxe3 {[%clk
0:04:04.2]} 21. Rd2 {[%clk 0:03:54.4]} 21... Nxg4 {[%clk 0:04:03]} 22. Rxa6
{[%clk 0:03:52.2]} 22... Bb6 {[%clk 0:03:30.3]} 23. Nxb6 {[%clk 0:03:49.2]}
23... axb6 {[%clk 0:03:29.7]} 24. Rxb6 {[%clk 0:03:48.4]} 24... Rac8 {[%clk
0:03:27.9]} 25. a4 {[%clk 0:03:35.8]} 25... Rc1+ {[%clk 0:03:23.3]} 26. Kg2
{[%clk 0:03:31.9]} 26... Ne3+ {[%clk 0:03:18.8]} 27. Kh3 {[%clk 0:03:24.1]}
27... Nc4 {[%clk 0:03:17.9]} 28. a5 {[%clk 0:03:21.1]} 28... Nxb6 {[%clk
0:03:07.7]} 29. axb6 {[%clk 0:03:19.5]} 29... Rb8 {[%clk 0:03:05.6]} 30. b4
{[%clk 0:03:17]} 30... Rxb6 {[%clk 0:03:01.5]} 31. Ra2 {[%clk 0:03:15.4]} 31...
Rc8 {[%clk 0:02:56.5]} 32. Ra4 {[%clk 0:03:07.9]} 32... h6 {[%clk 0:02:54.7]}
33. Kg4 {[%clk 0:03:00.1]} 33... Rcb8 {[%clk 0:02:53.6]} 34. h4 {[%clk
0:02:52.3]} 34... Rxb4 {[%clk 0:02:52]} 35. Ra7 {[%clk 0:02:51.5]} 35... R4b7
{[%clk 0:02:35.4]} 36. Ra1 {[%clk 0:02:45.4]} 36... Rb3 {[%clk 0:02:31]} 37. h5
{[%clk 0:02:43.1]} 37... Rd3 {[%clk 0:02:10]} 38. Ra4 {[%clk 0:02:11.7]} 38...
Rbb3 {[%clk 0:02:05.9]} 39. Ne1 {[%clk 0:01:59.8]} 39... Rg3+ {[%clk 0:02:02.9]}
40. Kf4 {[%clk 0:01:58.8]} 40... Rh3 {[%clk 0:01:52.8]} 41. Kg4 {[%clk
0:01:57.4]} 41... Rbg3+ {[%clk 0:01:50.7]} 42. Kf4 {[%clk 0:01:56.2]} 42... Rg5
{[%clk 0:01:47.8]} 43. Ra8+ {[%clk 0:01:51.7]} 43... Kh7 {[%clk 0:01:46.4]} 44.
Ra7 {[%clk 0:01:41.9]} 44... Rf5+ {[%clk 0:01:45.6]} 45. Kg4 {[%clk 0:01:40.4]}
45... Rhxh5 {[%clk 0:01:44.9]} 46. Nd3 {[%clk 0:01:35.6]} 46... Rhg5+ {[%clk
0:01:44.2]} 47. Kh4 {[%clk 0:01:34.4]} 47... Rf1 {[%clk 0:01:40.2]} 48. Nf2
{[%clk 0:01:15]} 48... Rxf2 {[%clk 0:01:32.4]} 49. Kh3 {[%clk 0:01:14.2]} 49...
Rf1 {[%clk 0:01:27.6]} 50. Kh2 {[%clk 0:01:13.1]} 50... Rf4 {[%clk 0:01:26.7]}
51. Kh3 {[%clk 0:01:12.1]} 51... Rxd4 {[%clk 0:01:25.9]} 52. Rxf7 {[%clk
0:01:09.9]} 52... Re4 {[%clk 0:01:18.3]} 53. Re7 {[%clk 0:01:07.2]} 53... Rexe5
{[%clk 0:01:17.7]} 54. Kh2 {[%clk 0:01:00.8]} 54... d4 {[%clk 0:01:16.8]} 55.
Rd7 {[%clk 0:00:58.6]} 55... Rd5 {[%clk 0:01:16]} 56. Re7 {[%clk 0:00:57.1]}
56... Rg6 {[%clk 0:01:15.1]} 57. Ra7 {[%clk 0:00:54.5]} 57... d3 {[%clk
0:01:14.4]} 58. Ra1 {[%clk 0:00:53.4]} 58... d2 {[%clk 0:01:13.6]} 59. Rd1
{[%clk 0:00:52.6]} 59... e5 {[%clk 0:01:13.1]} 60. Kh3 {[%clk 0:00:49.3]} 60...
e4 {[%clk 0:01:12.4]} 61. Kh4 {[%clk 0:00:48.6]} 61... e3 {[%clk 0:01:11.9]} 62.
Kh3 {[%clk 0:00:40.3]} 62... e2 {[%clk 0:01:11.1]} 63. Rxd2 {[%clk 0:00:38.1]}
63... Rxd2 {[%clk 0:01:09.7]} 0-1

[Event "Live Chess"]
[Site "Chess.com"]
[Date "2023.05.20"]
[Round "-"]
[White "SupremeTactician"]
[Black "SavagePawn7"]
[Result "1-0"]
[WhiteElo "2366"]
[BlackElo "796"]
[TimeControl "300"]
[EndTime "13:22:23 PDT"]
[Termination "SupremeTactician won by resignation"]

1. e4 {[%clk 0:04:57.6]} 1... d5 {[%clk 0:04:58.4]} 2. exd5 {[%clk 0:04:56.6]}
2... Nf6 {[%clk 0:04:56.4]} 3. Nc3 {[%clk 0:04:55.9]} 3... Nxd5 {[%clk
0:04:54.4]} 4. Nxd5 {[%clk 0:04:55.8]} 4... Qxd5 {[%clk 0:04:53.1]} 5. Nf3
{[%clk 0:04:55.7]} 5... Nc6 {[%clk 0:04:51.5]} 6. Be2 {[%clk 0:04:53.7]} 6...
Bg4 {[%clk 0:04:46.9]} 7. h3 {[%clk 0:04:52.5]} 7... Bxf3 {[%clk 0:04:44.9]} 8.
Bxf3 {[%clk 0:04:52.4]} 8... Qe6+ {[%clk 0:04:42.9]} 9. Qe2 {[%clk 0:04:51.8]}
9... Qxe2+ {[%clk 0:04:40.8]} 10. Bxe2 {[%clk 0:04:51.7]} 10... Nd4 {[%clk
0:04:36.5]} 11. Bd1 {[%clk 0:04:50.9]} 11... O-O-O {[%clk 0:04:33.5]} 12. c3
{[%clk 0:04:50.2]} 12... Nf5 {[%clk 0:04:26.3]} 13. Bc2 {[%clk 0:04:45.9]} 13...
e6 {[%clk 0:04:24.6]} 14. d4 {[%clk 0:04:43.7]} 14... b6 {[%clk 0:04:20.1]} 15.
O-O {[%clk 0:04:42.3]} 15... c5 {[%clk 0:04:11.7]} 16. dxc5 {[%clk 0:04:41.1]}
16... bxc5 {[%clk 0:04:09.8]} 17. Bxf5 {[%clk 0:04:36.7]} 17... exf5 {[%clk
0:04:06.4]} 18. Be3 {[%clk 0:04:36.6]} 18... Be7 {[%clk 0:03:57]} 19. Rad1
{[%clk 0:04:35.9]} 19... Rxd1 {[%clk 0:03:52.4]} 20. Rxd1 {[%clk 0:04:35.8]}
20... Rd8 {[%clk 0:03:50.8]} 21. Rxd8+ {[%clk 0:04:35.1]} 21... Kxd8 {[%clk
0:03:49.3]} 22. Kf1 {[%clk 0:04:34.8]} 22... Kd7 {[%clk 0:03:43.6]} 23. Ke2
{[%clk 0:04:34.2]} 23... Ke6 {[%clk 0:03:42.4]} 24. Kd3 {[%clk 0:04:33.8]} 24...
Kd5 {[%clk 0:03:41.2]} 25. c4+ {[%clk 0:04:33.4]} 25... Ke6 {[%clk 0:03:33.1]}
26. a3 {[%clk 0:04:31.2]} 26... Kd7 {[%clk 0:03:25.6]} 27. Kc3 {[%clk
0:04:30.3]} 27... Kc6 {[%clk 0:03:24.5]} 28. b4 {[%clk 0:04:29.3]} 28... cxb4+
{[%clk 0:03:22]} 29. axb4 {[%clk 0:04:28.4]} 29... a6 {[%clk 0:03:20.2]} 30. Kb3
{[%clk 0:04:25.1]} 30... f6 {[%clk 0:03:11.1]} 31. Ka4 {[%clk 0:04:21.3]} 31...
g5 {[%clk 0:02:50.5]} 32. g3 {[%clk 0:04:16]} 32... h5 {[%clk 0:02:42.6]} 33.
Bd4 {[%clk 0:04:13.1]} 33... h4 {[%clk 0:02:33.9]} 34. b5+ {[%clk 0:04:13]}
34... axb5+ {[%clk 0:02:29.9]} 35. cxb5+ {[%clk 0:04:12.7]} 35... Kb7 {[%clk
0:02:25.8]} 36. gxh4 {[%clk 0:04:08.9]} 36... gxh4 {[%clk 0:02:24.2]} 37. Kb3
{[%clk 0:04:08.8]} 37... Bd6 {[%clk 0:02:08.7]} 38. Kc4 {[%clk 0:04:08.7]} 38...
Be5 {[%clk 0:01:58.6]} 39. Bxe5 {[%clk 0:04:04.9]} 39... fxe5 {[%clk 0:01:57.4]}
40. Kd5 {[%clk 0:04:04.8]} 40... e4 {[%clk 0:01:53.6]} 41. Ke5 {[%clk
0:04:04.3]} 41... Kb6 {[%clk 0:01:48.8]} 42. Kxf5 {[%clk 0:04:03.6]} 42... Kxb5
{[%clk 0:01:47.9]} 43. Kxe4 {[%clk 0:04:03]} 43... Kc5 {[%clk 0:01:46.5]} 44.
Ke5 {[%clk 0:04:02.2]} 44... Kc4 {[%clk 0:01:44.9]} 45. f4 {[%clk 0:04:01.3]}
45... Kc5 {[%clk 0:01:43.8]} 46. f5 {[%clk 0:04:00.6]} 46... Kc6 {[%clk
0:01:42.4]} 47. Ke6 {[%clk 0:04:00.2]} 47... Kc7 {[%clk 0:01:41.1]} 48. f6
{[%clk 0:03:59.8]} 48... Kd8 {[%clk 0:01:37.7]} 49. f7 {[%clk 0:03:59.4]} 1-0

[Event "Live Chess"]
[Site "Chess.com"]
[Date "2023.05.20"]
[Round "-"]
[White "defenderalist"]
[Black "onemoretime1975"]
[Result "1-0"]
[WhiteElo "1595"]
[BlackElo "1862"]
[TimeControl "300"]
[EndTime "13:22:34 PDT"]
[Termination "defenderalist won by resignation"]

1. e4 {[%clk 0:04:59.6]} 1... e6 {[%clk 0:04:58]} 2. Nf3 {[%clk 0:04:58.3]} 2...
d5 {[%clk 0:04:55.7]} 3. exd5 {[%clk 0:04:57.2]} 3... exd5 {[%clk 0:04:54.2]} 4.
d4 {[%clk 0:04:56.2]} 4... Nf6 {[%clk 0:04:52.8]} 5. Bd3 {[%clk 0:04:55]} 5...
Bd6 {[%clk 0:04:50.8]} 6. O-O {[%clk 0:04:53.6]} 6... O-O {[%clk 0:04:49.3]} 7.
c3 {[%clk 0:04:52.7]} 7... Bg4 {[%clk 0:04:47.8]} 8. h3 {[%clk 0:04:51]} 8...
Bh5 {[%clk 0:04:45.8]} 9. Nbd2 {[%clk 0:04:47.2]} 9... c6 {[%clk 0:04:43.5]} 10.
Qc2 {[%clk 0:04:46.4]} 10... Bg6 {[%clk 0:04:38.7]} 11. Bxg6 {[%clk 0:04:44.5]}
11... hxg6 {[%clk 0:04:36.9]} 12. Nb3 {[%clk 0:04:40.7]} 12... Nbd7 {[%clk
0:04:34.8]} 13. Bg5 {[%clk 0:04:39.3]} 13... Re8 {[%clk 0:04:31.9]} 14. Rae1
{[%clk 0:04:36.5]} 14... Qc7 {[%clk 0:04:29.3]} 15. Nbd2 {[%clk 0:04:25.6]}
15... Bf4 {[%clk 0:04:11.5]} 16. Bxf4 {[%clk 0:04:23.8]} 16... Qxf4 {[%clk
0:04:09.2]} 17. Qd3 {[%clk 0:04:13.5]} 17... Ne4 {[%clk 0:03:54.7]} 18. Re2
{[%clk 0:03:55.3]} 18... Nxd2 {[%clk 0:03:46.5]} 19. Nxd2 {[%clk 0:03:48.3]}
19... Nf6 {[%clk 0:03:40.4]} 20. Rfe1 {[%clk 0:03:45.3]} 20... Rxe2 {[%clk
0:03:37.7]} 21. Rxe2 {[%clk 0:03:41.4]} 21... Kf8 {[%clk 0:03:31.1]} 22. f3
{[%clk 0:03:40]} 22... Re8 {[%clk 0:03:24.9]} 23. Rxe8+ {[%clk 0:03:37.1]} 23...
Nxe8 {[%clk 0:03:22.2]} 24. Nf1 {[%clk 0:03:35.8]} 24... Nd6 {[%clk 0:03:15.3]}
25. b3 {[%clk 0:03:32.3]} 25... Nf5 {[%clk 0:03:12.5]} 26. Qd2 {[%clk
0:03:22.7]} 26... Qd6 {[%clk 0:03:02.3]} 27. Qe2 {[%clk 0:03:16.9]} 27... Qe7
{[%clk 0:02:53.3]} 28. Qxe7+ {[%clk 0:03:13.5]} 28... Kxe7 {[%clk 0:02:52.1]}
29. Kf2 {[%clk 0:03:12.5]} 29... Kd6 {[%clk 0:02:50.3]} 30. g4 {[%clk
0:03:03.2]} 30... Ne7 {[%clk 0:02:35.3]} 31. f4 {[%clk 0:02:56.5]} 31... f6
{[%clk 0:02:31.5]} 32. Kf3 {[%clk 0:02:54.6]} 32... b6 {[%clk 0:02:22.8]} 33. h4
{[%clk 0:02:51.4]} 33... c5 {[%clk 0:02:20]} 34. Ne3 {[%clk 0:02:40.2]} 34...
cxd4 {[%clk 0:02:18.1]} 35. cxd4 {[%clk 0:02:39.2]} 35... Nc6 {[%clk 0:02:16.6]}
36. Nc2 {[%clk 0:02:37.5]} 36... a5 {[%clk 0:02:09.9]} 37. h5 {[%clk 0:02:35.8]}
37... gxh5 {[%clk 0:02:04.2]} 38. gxh5 {[%clk 0:02:34.1]} 38... Ne7 {[%clk
0:02:02.3]} 39. Kg4 {[%clk 0:02:33]} 39... Ke6 {[%clk 0:01:54.2]} 40. Ne3 {[%clk
0:02:31.5]} 40... Nc6 {[%clk 0:01:49.3]} 41. f5+ {[%clk 0:02:24]} 41... Kd6
{[%clk 0:01:44.7]} 42. Nc2 {[%clk 0:02:22.4]} 42... Ne7 {[%clk 0:01:36.3]} 43.
Kf4 {[%clk 0:02:18.7]} 43... Nc6 {[%clk 0:01:27.2]} 44. Kg4 {[%clk 0:02:00.4]}
44... Ne7 {[%clk 0:01:24.1]} 45. Kf4 {[%clk 0:01:59.3]} 45... Ng8 {[%clk
0:01:22.2]} 46. Kg4 {[%clk 0:01:55.2]} 46... Nh6+ {[%clk 0:01:20.7]} 47. Kf4
{[%clk 0:01:54.4]} 47... Nf7 {[%clk 0:01:19.3]} 48. Kg4 {[%clk 0:01:50.8]} 48...
Ng5 {[%clk 0:01:18]} 49. Na3 {[%clk 0:01:37.8]} 49... Kc6 {[%clk 0:01:15.2]} 50.
Nc2 {[%clk 0:01:35.6]} 50... Ne4 {[%clk 0:01:13.2]} 51. h6 {[%clk 0:01:28.7]}
51... gxh6 {[%clk 0:01:11]} 52. Kh5 {[%clk 0:01:28.2]} 52... Kd6 {[%clk
0:01:03.1]} 53. Kxh6 {[%clk 0:01:27.2]} 53... Ke7 {[%clk 0:00:56.5]} 54. Kg7
{[%clk 0:01:23.8]} 54... Ng3 {[%clk 0:00:53.5]} 55. Ne3 {[%clk 0:01:22.6]} 55...
Kd6 {[%clk 0:00:46.4]} 56. Kf7 {[%clk 0:01:21.4]} 56... Ne2 {[%clk 0:00:45]} 57.
Nc2 {[%clk 0:01:15.8]} 57... Nc1 {[%clk 0:00:42.6]} 58. Kxf6 {[%clk 0:01:10.3]}
58... Nxa2 {[%clk 0:00:41.4]} 59. Kg7 {[%clk 0:01:06.7]} 59... Nc3 {[%clk
0:00:36.4]} 60. f6 {[%clk 0:01:06.1]} 60... Ne4 {[%clk 0:00:33]} 61. f7 {[%clk
0:01:05.1]} 1-0

[Event "Live Chess"]
[Site "Chess.com"]
[Date "2023.05.20"]
[Round "-"]
[White "bristolunichess"]
[Black "OSmith06"]
[Result "1-0"]
[WhiteElo "1817"]
[BlackElo "1648"]
[TimeControl "300"]
[EndTime "13:22:51 PDT"]
[Termination "bristolunichess won by checkmate"]

1. e4 {[%clk 0:04:58.4]} 1... c6 {[%clk 0:04:58.8]} 2. d4 {[%clk 0:04:57]} 2...
d5 {[%clk 0:04:58.7]} 3. e5 {[%clk 0:04:56.2]} 3... c5 {[%clk 0:04:57.8]} 4. Nf3
{[%clk 0:04:53.6]} 4... Bg4 {[%clk 0:04:56.4]} 5. dxc5 {[%clk 0:04:51.3]} 5...
Nc6 {[%clk 0:04:51.8]} 6. Bb5 {[%clk 0:04:48.6]} 6... e6 {[%clk 0:04:51.1]} 7.
Bxc6+ {[%clk 0:04:38.9]} 7... bxc6 {[%clk 0:04:51]} 8. Qd4 {[%clk 0:04:38.2]}
8... Bxf3 {[%clk 0:04:42.8]} 9. gxf3 {[%clk 0:04:38.1]} 9... Qa5+ {[%clk
0:04:35.8]} 10. b4 {[%clk 0:04:36.3]} 10... Qb5 {[%clk 0:04:26.4]} 11. a4 {[%clk
0:04:33.7]} 11... Qb7 {[%clk 0:04:22.6]} 12. Nc3 {[%clk 0:04:32]} 12... Ne7
{[%clk 0:04:20.6]} 13. Rb1 {[%clk 0:04:20.2]} 13... Nf5 {[%clk 0:04:18.4]} 14.
Qd3 {[%clk 0:04:16]} 14... Be7 {[%clk 0:04:12]} 15. Ne2 {[%clk 0:04:03.7]} 15...
Bxc5 {[%clk 0:04:04.5]} 16. Ng3 {[%clk 0:03:54]} 16... Bxb4+ {[%clk 0:03:55.5]}
17. c3 {[%clk 0:03:46.4]} 17... Bxc3+ {[%clk 0:03:50.2]} 18. Kf1 {[%clk
0:03:46]} 18... Nxg3+ {[%clk 0:03:45.5]} 19. hxg3 {[%clk 0:03:45.9]} 19... Qc7
{[%clk 0:03:20.2]} 20. Qxc3 {[%clk 0:03:42.4]} 20... O-O {[%clk 0:03:18.6]} 21.
Be3 {[%clk 0:03:39.4]} 21... Rab8 {[%clk 0:03:11.6]} 22. Qc2 {[%clk 0:03:38.7]}
22... c5 {[%clk 0:03:04.2]} 23. Qxh7# {[%clk 0:03:35.6]} 1-0

[Event "Live Chess"]
[Site "Chess.com"]
[Date "2023.05.20"]
[Round "-"]
[White "f4nomore"]
[Black "MarkLim1"]
[Result "1-0"]
[WhiteElo "1382"]
[BlackElo "1646"]
[TimeControl "300"]
[EndTime "13:22:58 PDT"]
[Termination "f4nomore won by checkmate"]

1. d4 {[%clk 0:04:58.4]} 1... Nf6 {[%clk 0:04:58.9]} 2. Bg5 {[%clk 0:04:56.2]}
2... e6 {[%clk 0:04:58.1]} 3. Bxf6 {[%clk 0:04:54]} 3... Qxf6 {[%clk 0:04:57.3]}
4. c3 {[%clk 0:04:53.1]} 4... d6 {[%clk 0:04:55.6]} 5. Nf3 {[%clk 0:04:52]} 5...
g6 {[%clk 0:04:54.8]} 6. e3 {[%clk 0:04:50.6]} 6... Bg7 {[%clk 0:04:54.4]} 7.
Be2 {[%clk 0:04:49.6]} 7... O-O {[%clk 0:04:54]} 8. O-O {[%clk 0:04:48.4]} 8...
c5 {[%clk 0:04:53.5]} 9. Nbd2 {[%clk 0:04:47.1]} 9... b6 {[%clk 0:04:52.8]} 10.
Ne4 {[%clk 0:04:45.5]} 10... Qe7 {[%clk 0:04:51.3]} 11. Rb1 {[%clk 0:04:40.1]}
11... Bb7 {[%clk 0:04:49.8]} 12. Bd3 {[%clk 0:04:36.4]} 12... Nc6 {[%clk
0:04:42.7]} 13. b3 {[%clk 0:04:31.9]} 13... cxd4 {[%clk 0:04:41.7]} 14. cxd4
{[%clk 0:04:30.3]} 14... Nb4 {[%clk 0:04:39.1]} 15. Nc3 {[%clk 0:04:18.2]} 15...
Nxd3 {[%clk 0:04:33.9]} 16. Qxd3 {[%clk 0:04:16.4]} 16... Rac8 {[%clk 0:04:32]}
17. Ne2 {[%clk 0:04:10.9]} 17... Rc7 {[%clk 0:04:28]} 18. h3 {[%clk 0:04:09.1]}
18... Rfc8 {[%clk 0:04:26.8]} 19. Rfc1 {[%clk 0:03:54.6]} 19... Bxf3 {[%clk
0:04:23.4]} 20. Rxc7 {[%clk 0:03:49.4]} 20... Rxc7 {[%clk 0:04:06.4]} 21. gxf3
{[%clk 0:03:47]} 21... Qh4 {[%clk 0:04:04.4]} 22. Nf4 {[%clk 0:03:32.9]} 22...
e5 {[%clk 0:03:55.7]} 23. dxe5 {[%clk 0:03:28.7]} 23... Bxe5 {[%clk 0:03:52]}
24. Ng2 {[%clk 0:03:15.5]} 24... Qxh3 {[%clk 0:03:37.7]} 25. f4 {[%clk
0:03:13.8]} 25... Bg7 {[%clk 0:03:24.6]} 26. Qxd6 {[%clk 0:03:04.2]} 26... Rc2
{[%clk 0:03:22.3]} 27. Qd8+ {[%clk 0:02:56.9]} 27... Bf8 {[%clk 0:03:21.1]} 28.
Qh4 {[%clk 0:02:51]} 28... Qxh4 {[%clk 0:03:14.5]} 29. Nxh4 {[%clk 0:02:49]}
29... Rxa2 {[%clk 0:03:14.1]} 30. Nf3 {[%clk 0:02:45.7]} 30... a5 {[%clk
0:03:08.7]} 31. Rd1 {[%clk 0:02:44.4]} 31... Bc5 {[%clk 0:03:04.5]} 32. Rd8+
{[%clk 0:02:40.4]} 32... Kg7 {[%clk 0:03:03.6]} 33. Ne5 {[%clk 0:02:36.5]} 33...
f6 {[%clk 0:02:58.7]} 34. Rd7+ {[%clk 0:02:33.5]} 34... Kh6 {[%clk 0:02:57.2]}
35. Ng4+ {[%clk 0:02:25.6]} 35... Kh5 {[%clk 0:02:51.8]} 36. Nxf6+ {[%clk
0:02:21.6]} 36... Kh4 {[%clk 0:02:41]} 37. Rxh7# {[%clk 0:02:18.3]} 1-0

[Event "Live Chess"]
[Site "Chess.com"]
[Date "2023.05.20"]
[Round "-"]
[White "ProfPoisson"]
[Black "SirEntrails"]
[Result "1-0"]
[WhiteElo "1075"]
[BlackElo "536"]
[TimeControl "300"]
[EndTime "13:23:05 PDT"]
[Termination "ProfPoisson won by checkmate"]

1. e4 {[%clk 0:04:56.3]} 1... d5 {[%clk 0:04:59]} 2. exd5 {[%clk 0:04:54.4]}
2... Nf6 {[%clk 0:04:58.2]} 3. Nc3 {[%clk 0:04:52.5]} 3... Nxd5 {[%clk
0:04:56.8]} 4. d4 {[%clk 0:04:51.4]} 4... Nc6 {[%clk 0:04:53.7]} 5. Nf3 {[%clk
0:04:44.5]} 5... Bg4 {[%clk 0:04:50.5]} 6. Be2 {[%clk 0:04:35.4]} 6... e6 {[%clk
0:04:46.2]} 7. Nxd5 {[%clk 0:04:29.1]} 7... exd5 {[%clk 0:04:40.6]} 8. O-O
{[%clk 0:04:24.6]} 8... Bxf3 {[%clk 0:04:30.4]} 9. Bxf3 {[%clk 0:04:20.3]} 9...
Bd6 {[%clk 0:04:29.5]} 10. Re1+ {[%clk 0:04:16.7]} 10... Ne7 {[%clk 0:04:25.1]}
11. Bxd5 {[%clk 0:04:13.2]} 11... c6 {[%clk 0:04:20.3]} 12. Bb3 {[%clk
0:04:06.6]} 12... O-O {[%clk 0:04:19.1]} 13. Bg5 {[%clk 0:03:59]} 13... h6
{[%clk 0:04:06.9]} 14. Bh4 {[%clk 0:03:53.8]} 14... g5 {[%clk 0:03:48.4]} 15.
Qg4 {[%clk 0:03:37.7]} 15... c5 {[%clk 0:03:39.7]} 16. dxc5 {[%clk 0:03:05.4]}
16... Bxc5 {[%clk 0:03:31.1]} 17. Rad1 {[%clk 0:02:58.7]} 17... Qb6 {[%clk
0:03:23.4]} 18. Bg3 {[%clk 0:02:43.6]} 18... a5 {[%clk 0:02:57.2]} 19. h4 {[%clk
0:02:40.9]} 19... a4 {[%clk 0:02:35.9]} 20. Bc4 {[%clk 0:02:31.3]} 20... Qxb2
{[%clk 0:02:26.8]} 21. hxg5 {[%clk 0:02:27.6]} 21... Qxc2 {[%clk 0:02:20.7]} 22.
gxh6+ {[%clk 0:02:23.4]} 22... Qg6 {[%clk 0:02:12.1]} 23. Qxg6+ {[%clk
0:02:00.7]} 23... Nxg6 {[%clk 0:02:03.9]} 24. Rd7 {[%clk 0:01:50.5]} 24... Kh7
{[%clk 0:01:53.7]} 25. Bd6 {[%clk 0:01:39.7]} 25... Rfd8 {[%clk 0:01:46.3]} 26.
Rxf7+ {[%clk 0:01:33.8]} 26... Kxh6 {[%clk 0:01:43.2]} 27. Bxc5 {[%clk 0:01:31]}
27... Ra5 {[%clk 0:01:38.3]} 28. Be3+ {[%clk 0:01:28.9]} 28... Kh5 {[%clk
0:01:28.7]} 29. Be2+ {[%clk 0:01:26.3]} 29... Kh4 {[%clk 0:01:21.4]} 30. Rh7+
{[%clk 0:01:25.7]} 30... Rh5 {[%clk 0:01:16.7]} 31. Rxh5# {[%clk 0:01:21.5]} 1-0